bitfinex/quotes_BTCUSD_20250418
["timestamp","ask_amount","ask_price","bid_price","bid_amount"]
[1744942264413,0.80613051,84738.0,84737.0,0.55392048]
[1744942265181,0.76383051,84738.0,84737.0,0.55392048]
[1744942265567,0.63867051,84738.0,84737.0,0.55392048]
[1744942266992,0.63867051,84738.0,84737.0,0.41993172]
[1744942267538,0.63867051,84738.0,84737.0,0.0091244]
[1744942267758,0.87469212,84738.0,84737.0,0.0091244]
[1744942267884,0.87469212,84738.0,84736.0,0.34]
[1744942268082,0.87469212,84738.0,84737.0,0.00908531]
[1744942268512,0.87469212,84738.0,84736.0,0.34]
[1744942268718,0.87469212,84738.0,84737.0,0.00908531]
[1744942269154,0.87469212,84738.0,84736.0,0.07080812]
[1744942269364,0.87469212,84738.0,84737.0,0.00908531]
[1744942269731,0.63867051,84738.0,84736.0,0.0708081]
[1744942269969,0.63867051,84738.0,84737.0,0.00908531]
[1744942270171,0.87469212,84738.0,84737.0,0.00908531]
[1744942270479,0.87469212,84738.0,84735.0,0.08261032]
[1744942270829,0.87469212,84738.0,84736.0,0.009082]
[1744942271128,0.63867051,84738.0,84736.0,0.009082]
[1744942271467,0.63867051,84738.0,84736.0,0.07989006]
[1744942274263,0.63867051,84738.0,84737.0,0.41080732]
[1744942274605,0.63867051,84738.0,84737.0,0.41989085]
[1744942275004,0.63867051,84738.0,84737.0,0.34908353]
[1744942277218,0.63867051,84738.0,84737.0,0.00908353]
[1744942277428,0.63867051,84738.0,84736.0,0.07080806]
[1744942277633,0.63867051,84738.0,84737.0,0.00908021]
[1744942278010,0.63867051,84738.0,84736.0,0.07080806]
[1744942278219,0.63867051,84738.0,84737.0,0.00908021]
[1744942278423,0.63867051,84738.0,84736.0,0.07080806]
[1744942278642,0.63867051,84738.0,84737.0,0.00908021]
[1744942279059,0.63867051,84738.0,84737.0,0.07080732]
[1744942281593,0.63867051,84738.0,84737.0,0.07989085]
[1744942282372,0.62861342,84738.0,84737.0,0.07989085]
[1744942282997,0.57109685,84738.0,84737.0,0.07989085]
[1744942283374,0.51218474,84738.0,84737.0,0.07989085]
[1744942283572,0.51218474,84738.0,84737.0,0.0783572]
[1744942285585,0.51218474,84738.0,84737.0,0.4183572]
[1744942289796,0.45327378,84738.0,84737.0,0.4183572]
[1744942290520,0.39436282,84738.0,84737.0,0.55234596]
[1744942292727,0.33545282,84738.0,84737.0,0.55234596]
[1744942293781,0.27654186,84738.0,84737.0,0.55234596]
[1744942294083,0.21763186,84738.0,84737.0,0.55234596]
[1744942294320,0.15872186,84738.0,84737.0,0.55234596]
[1744942295774,0.14105186,84738.0,84737.0,0.55234596]
[1744942296251,0.0821409,84738.0,84737.0,0.55234596]
[1744942296409,0.0644709,84738.0,84737.0,0.55234596]
[1744942296815,0.02258091,84738.0,84737.0,0.55234596]
[1744942297714,0.24779836,84747.0,84744.0,0.04720074]
[1744942298071,0.24779836,84747.0,84745.0,0.00755511]
[1744942298338,0.01179982,84747.0,84745.0,0.06379451]
[1744942298538,0.01179982,84747.0,84745.0,0.0562394]
[1744942298679,0.01179982,84747.0,84746.0,0.00755511]
[1744942299959,0.24779671,84747.0,84742.0,0.35454085]
[1744942300151,0.24779671,84747.0,84746.0,0.00629924]
[1744942300314,0.24779671,84747.0,84742.0,0.34]
[1744942300572,0.24779671,84747.0,84746.0,0.00628753]
[1744942300791,0.24779671,84747.0,84742.0,0.34]
[1744942301096,0.24779671,84747.0,84742.0,0.01454085]
[1744942301304,0.01179982,84747.0,84743.0,0.00628422]
[1744942301500,0.58324658,84748.0,84743.0,0.00628422]
[1744942302062,0.23599738,84747.0,84743.0,0.00628422]
[1744942302520,0.23599938,84746.0,84743.0,0.00628422]
[1744942302718,0.24779934,84746.0,84743.0,0.00628422]
[1744942303696,0.01179996,84746.0,84743.0,0.00628422]
[1744942304020,0.24779944,84746.0,84743.0,0.00628422]
[1744942304223,0.24779944,84746.0,84743.0,0.01524399]
[1744942305150,0.23600374,84745.0,84743.0,0.01524399]
[1744942305353,0.2360049,84744.0,84743.0,0.01524399]
[1744942305553,0.23600374,84745.0,84743.0,0.01524399]
[1744942305932,0.2360049,84744.0,84743.0,0.01524399]
[1744942310180,0.23600374,84745.0,84743.0,0.01524399]
[1744942310480,0.23600374,84745.0,84743.0,0.00895977]
[1744942311010,0.23600505,84744.0,84742.0,0.06174253]
[1744942312838,0.2360049,84744.0,84743.0,0.34]
[1744942313038,0.2360049,84744.0,84743.0,0.34862753]
[1744942313319,0.24780384,84745.0,84743.0,0.39582906]
[1744942314208,0.2477972,84747.0,84745.0,0.04720042]
[1744942314500,0.01179982,84747.0,84744.0,0.39900112]
[1744942314696,0.33545282,84748.0,84746.0,0.0471994]
[1744942314902,0.33549782,84748.0,84746.0,0.0471994]
[1744942315637,0.57149243,84748.0,84746.0,0.0471994]
[1744942315842,0.57149243,84748.0,84745.0,0.0118001]
[1744942316057,0.24783929,84748.0,84745.0,0.0118001]
[1744942316245,0.23599698,84747.0,84744.0,0.35180024]
[1744942316469,0.2477968,84747.0,84744.0,0.35180024]
[1744942316830,0.24783929,84748.0,84744.0,0.01180024]
[1744942317175,4.5e-05,84748.0,84744.0,0.01180024]
[1744942317380,4.5e-05,84748.0,84745.0,0.0118001]
[1744942320044,4.5e-05,84748.0,84747.0,0.04719931]
[1744942320244,4.5e-05,84748.0,84747.0,0.0534965]
[1744942320666,4.5e-05,84748.0,84747.0,0.00629719]
[1744942321201,4.5e-05,84748.0,84747.0,0.04719931]
[1744942321565,4.5e-05,84748.0,84747.0,0.05348626]
[1744942321969,4.5e-05,84748.0,84745.0,0.0118001]
[1744942322166,4.5e-05,84748.0,84747.0,0.00522256]
[1744942322365,4.5e-05,84748.0,84746.0,0.00521924]
[1744942322608,4.5e-05,84748.0,84747.0,0.00522256]
[1744942322804,4.5e-05,84748.0,84745.0,0.0118001]
[1744942323031,0.23599804,84747.0,84745.0,0.06174127]
[1744942323241,0.23599804,84747.0,84746.0,0.00521924]
[1744942323452,0.23599804,84747.0,84745.0,0.01454085]
[1744942323653,0.23599804,84747.0,84746.0,0.00522586]
[1744942323854,0.23599655,84747.0,84746.0,0.00522586]
[1744942326302,0.24783844,84748.0,84746.0,0.00522586]
[1744942327500,0.23599655,84747.0,84746.0,0.00522586]
[1744942328526,0.28419655,84747.0,84746.0,0.00522586]
[1744942328732,0.33109655,84747.0,84746.0,0.00522586]
[1744942328936,0.33109655,84747.0,84743.0,0.00862753]
[1744942328937,0.2360049,84744.0,84743.0,0.00862753]
[1744942329273,0.23601522,84741.0,84739.0,0.0038683]
[1744942329480,0.23601522,84741.0,84739.0,0.05107206]
[1744942329686,0.24781177,84742.0,84740.0,0.34]
[1744942330596,0.23601604,84740.0,84739.0,0.0127051]
[1744942331289,0.28421604,84740.0,84739.0,0.0127051]
[1744942337366,0.23602161,84738.0,84737.0,0.20215948]
[1744942338239,0.23602161,84738.0,84737.0,0.20740476]
[1744942341773,0.23602161,84738.0,84737.0,0.2161744]
[1744942342174,0.23602161,84738.0,84737.0,0.01401492]
[1744942342483,0.2478176,84740.0,84737.0,0.06121949]
[1744942342702,0.23601963,84739.0,84737.0,0.06121949]
[1744942343074,0.23601928,84739.0,84737.0,0.06121949]
[1744942343268,0.2478176,84740.0,84736.0,0.18466415]
[1744942343465,0.2478176,84740.0,84737.0,0.04720457]
[1744942345117,0.23601891,84739.0,84737.0,0.04720457]
[1744942345821,0.23601891,84739.0,84737.0,0.05583813]
[1744942346004,0.23601891,84739.0,84737.0,0.00863356]
[1744942346207,0.23601891,84739.0,84736.0,0.39900671]
[1744942346401,0.23601891,84739.0,84736.0,0.05900671]
[1744942347649,0.23602209,84738.0,84735.0,0.01180149]
[1744942348125,0.23602209,84738.0,84735.0,0.05900701]
[1744942348537,0.24782317,84738.0,84735.0,0.05900701]
[1744942348732,0.23602486,84737.0,84735.0,0.05900701]
[1744942349092,0.24782317,84738.0,84735.0,0.05900701]
[1744942349337,0.24782317,84738.0,84736.0,0.04720512]
[1744942350722,0.24782317,84738.0,84736.0,0.05583161]
[1744942351367,0.24782317,84738.0,84736.0,0.00862649]
[1744942351682,0.24782317,84738.0,84735.0,0.05900701]
[1744942352763,0.24782031,84739.0,84736.0,0.04720502]
[1744942354225,0.24782031,84739.0,84737.0,0.34]
[1744942356268,0.24782031,84739.0,84737.0,0.38720484]
[1744942356674,0.01180094,84739.0,84737.0,0.38720484]
[1744942357201,0.29600028,84746.0,84743.0,0.01180038]
[1744942357514,0.23600789,84743.0,84741.0,0.05900321]
[1744942357656,0.23600789,84743.0,84741.0,0.01180066]
[1744942357858,0.24780514,84744.0,84742.0,0.00439189]
[1744942358296,4.5e-05,84748.0,84747.0,0.04719931]
[1744942358523,4.5e-05,84748.0,84743.0,0.01180038]
[1744942358524,0.24779888,84747.0,84743.0,0.01180038]
[1744942358863,0.23600054,84746.0,84743.0,0.05900156]
[1744942359201,0.24779888,84747.0,84743.0,0.05900156]
[1744942359378,0.24783844,84748.0,84744.0,0.05900093]
[1744942359583,0.24783844,84748.0,84744.0,0.39900093]
[1744942360003,0.24783844,84748.0,84745.0,0.38719993]
[1744942361011,0.01179996,84746.0,84743.0,0.34]
[1744942361330,0.05989996,84746.0,84743.0,0.34]
[1744942361510,0.2360049,84744.0,84743.0,0.34]
[1744942362075,0.2360049,84744.0,84739.0,0.34]
[1744942362076,0.01180052,84742.0,84739.0,0.34]
[1744942362394,0.23601604,84740.0,84739.0,0.34]
[1744942362612,0.28411604,84740.0,84739.0,0.34]
[1744942363149,0.28411604,84740.0,84739.0,0.34438691]
[1744942363285,0.28411604,84740.0,84739.0,0.00438691]
[1744942363524,0.2360244,84737.0,84736.0,0.00901884]
[1744942363869,0.23602719,84736.0,84735.0,0.34]
[1744942365511,0.23590918,84736.0,84735.0,0.34]
[1744942366831,0.23590918,84736.0,84735.0,0.34879791]
[1744942371406,0.23590918,84736.0,84735.0,0.00879791]
[1744942371659,0.23590918,84736.0,84733.0,0.39900858]
[1744942371847,0.23603276,84734.0,84733.0,0.34]
[1744942372248,0.23603014,84735.0,84733.0,0.34]
[1744942374034,0.23603014,84735.0,84733.0,0.387207]
[1744942376506,0.24782878,84736.0,84733.0,0.3960332]
[1744942376722,0.24782878,84736.0,84733.0,0.0560332]
[1744942377932,0.23603276,84734.0,84733.0,0.0088262]
[1744942378282,0.01180135,84736.0,84732.0,0.412]
[1744942378283,0.01180135,84736.0,84732.0,0.42380191]
[1744942378486,0.01180135,84736.0,84732.0,0.55604191]
[1744942378694,0.01180135,84736.0,84733.0,0.34]
[1744942379535,0.01180135,84736.0,84733.0,0.35180177]
[1744942380011,0.23602997,84735.0,84733.0,0.39900871]
[1744942380432,0.23602997,84735.0,84733.0,0.40804346]
[1744942381834,0.23603276,84734.0,84733.0,0.34903475]
[1744942382409,0.23602997,84735.0,84733.0,0.34903475]
[1744942382742,0.23603276,84734.0,84733.0,0.34903475]
[1744942382958,0.23602997,84735.0,84733.0,0.34903475]
[1744942384227,0.23602997,84735.0,84733.0,0.48127475]
[1744942384568,0.24782562,84737.0,84734.0,0.01180163]
[1744942384770,0.23602668,84737.0,84734.0,0.01180163]
[1744942385004,0.23603001,84735.0,84734.0,0.00438111]
[1744942385155,0.23603067,84735.0,84733.0,0.52848146]
[1744942385359,0.23603067,84735.0,84733.0,0.48127475]
[1744942385898,0.24782586,84737.0,84734.0,0.04720655]
[1744942386141,0.23603009,84735.0,84733.0,0.49307652]
[1744942386963,0.24783083,84736.0,84733.0,0.54028352]
[1744942387279,0.24782538,84738.0,84733.0,0.49307652]
[1744942387479,0.23601845,84740.0,84733.0,0.49307652]
[1744942387480,0.23601155,84742.0,84737.0,0.01180122]
[1744942387835,0.23601155,84742.0,84738.0,0.00438817]
[1744942387963,0.23601155,84742.0,84738.0,0.05159142]
[1744942388159,0.24781207,84742.0,84738.0,0.0633925]
[1744942389245,0.01180038,84743.0,84738.0,0.0633925]
[1744942389441,0.2478136,84743.0,84739.0,0.01180094]
[1744942389749,0.01180038,84743.0,84740.0,0.00439149]
[1744942390257,0.01180038,84743.0,84741.0,0.04720265]
[1744942390796,0.01180038,84743.0,84742.0,0.00439149]
[1744942390999,0.24780881,84743.0,84742.0,0.00439149]
[1744942391222,0.24781432,84741.0,84739.0,0.04720359]
[1744942391586,0.24781432,84741.0,84740.0,0.00438485]
[1744942395019,0.23601883,84739.0,84738.0,0.34]
[1744942395397,0.23601649,84740.0,84738.0,0.34]
[1744942395809,0.23601649,84740.0,84737.0,0.04720486]
[1744942395810,0.24781729,84740.0,84737.0,0.04720486]
[1744942396150,0.23601898,84739.0,84736.0,0.05900571]
[1744942396358,0.24781729,84740.0,84737.0,0.04720481]
[1744942397124,0.23601623,84740.0,84738.0,0.04720403]
[1744942397305,0.23601611,84740.0,84738.0,0.04720403]
[1744942397605,0.24781763,84740.0,84737.0,0.04720461]
[1744942397807,0.01180066,84741.0,84739.0,0.04720376]
[1744942398010,0.24781684,84740.0,84738.0,0.00438519]
[1744942398246,0.24781684,84740.0,84737.0,0.0472048]
[1744942398582,0.0118008,84740.0,84737.0,0.0472048]
[1744942398726,0.24781913,84740.0,84737.0,0.0472048]
[1744942398943,0.24781913,84740.0,84736.0,0.04720506]
[1744942399142,0.01180094,84739.0,84736.0,0.04720506]
[1744942399571,0.01180094,84739.0,84735.0,0.01454085]
[1744942399766,0.24782005,84739.0,84736.0,0.04720538]
[1744942399950,0.24782005,84739.0,84736.0,0.04720521]
[1744942400290,0.24781991,84739.0,84736.0,0.04720521]
[1744942402202,0.24781991,84739.0,84737.0,0.04720476]
[1744942402419,0.24781991,84739.0,84736.0,0.04720521]
[1744942404525,0.247818,84740.0,84737.0,0.04720437]
[1744942405079,0.24782083,84739.0,84737.0,0.0472048]
[1744942405467,0.23602243,84738.0,84736.0,0.04720521]
[1744942405667,0.24782351,84738.0,84735.0,0.06174634]
[1744942406095,0.24782083,84739.0,84736.0,0.04720503]
[1744942406247,0.23602328,84738.0,84736.0,0.04720503]
[1744942406500,0.23602566,84737.0,84735.0,0.02634234]
[1744942408140,0.23602566,84737.0,84735.0,0.0735483]
[1744942408542,0.23602719,84736.0,84735.0,0.01454085]
[1744942408779,0.23602997,84735.0,84734.0,0.47244]
[1744942408989,0.23602997,84735.0,84734.0,0.48698085]
[1744942409309,0.23602719,84736.0,84734.0,0.48698085]
[1744942409774,0.23602997,84735.0,84734.0,0.48698085]
[1744942410749,0.23602997,84735.0,84734.0,0.01454085]
[1744942411183,0.23603276,84734.0,84733.0,0.48147475]
[1744942414268,0.23603276,84734.0,84733.0,0.00903475]
[1744942414463,0.23603276,84734.0,84733.0,0.34903475]
[1744942414615,0.23603276,84734.0,84733.0,0.34]
[1744942418130,0.23603276,84734.0,84733.0,0.34875203]
[1744942419547,0.24782673,84737.0,84734.0,0.04720627]
[1744942419943,0.23602781,84736.0,84733.0,0.40776072]
[1744942420348,0.24782608,84737.0,84734.0,0.04720635]
[1744942420558,0.24782608,84737.0,84734.0,0.05900798]
[1744942421693,0.24782608,84737.0,84733.0,0.28478526]
[1744942422017,0.24782608,84737.0,84734.0,0.04720635]
[1744942422577,0.24782608,84737.0,84734.0,0.05900798]
[1744942424591,0.2360277,84736.0,84733.0,0.28478526]
[1744942425341,0.2360277,84736.0,84734.0,0.04720642]
[1744942426108,0.23603276,84734.0,84733.0,0.22577657]
[1744942426732,0.23603041,84735.0,84733.0,0.22577657]
[1744942427139,0.01180135,84736.0,84733.0,0.27298358]
[1744942427140,0.24782893,84736.0,84733.0,0.27298358]
[1744942427568,0.24782893,84736.0,84734.0,0.04720647]
[1744942428087,0.23602997,84735.0,84733.0,0.28478534]
[1744942428247,0.24782893,84736.0,84733.0,0.28478534]
[1744942428591,0.24782893,84736.0,84734.0,0.04720644]
[1744942431716,0.24782893,84736.0,84733.0,0.28478534]
[1744942432716,0.23603049,84735.0,84733.0,0.28478534]
[1744942432839,0.24782893,84736.0,84733.0,0.28478534]
[1744942433051,0.24782893,84736.0,84733.0,0.41694534]
[1744942437895,0.05,84778.0,84735.0,0.01180149]
[1744942437896,0.01180038,84743.0,84735.0,0.01180149]
[1744942438033,0.24781587,84741.0,84736.0,0.04720528]
[1744942438235,0.0118008,84740.0,84735.0,0.01180149]
[1744942438435,0.24781602,84741.0,84736.0,0.01618571]
[1744942438635,0.24781602,84741.0,84738.0,0.0472038]
[1744942438937,0.23601787,84740.0,84738.0,0.34]
[1744942439163,0.24781602,84741.0,84739.0,0.04720376]
[1744942441379,0.01180066,84741.0,84739.0,0.04720376]
[1744942442434,0.24781519,84741.0,84738.0,0.04720331]
[1744942443418,0.24781519,84741.0,84739.0,0.0472036]
[1744942443853,0.23601326,84741.0,84739.0,0.3872036]
[1744942444260,0.23601604,84740.0,84739.0,0.34]
[1744942444861,0.23601604,84740.0,84734.0,0.05900786]
[1744942444862,0.23602997,84735.0,84734.0,0.35454085]
[1744942445310,0.23602997,84735.0,84734.0,0.34]
[1744942446181,0.23873771,84735.0,84734.0,0.34]
[1744942447882,0.23873771,84735.0,84734.0,0.3443814]
[1744942449019,0.23973771,84735.0,84734.0,0.3443814]
[1744942450295,0.28873771,84735.0,84734.0,0.3443814]
[1744942450493,0.28602997,84735.0,84734.0,0.3443814]
[1744942450870,0.28602997,84735.0,84734.0,0.0043814]
[1744942451142,0.23605226,84727.0,84726.0,0.34]
[1744942451293,0.28776,84727.0,84726.0,0.34]
[1744942451489,0.28505226,84727.0,84726.0,0.34439649]
[1744942452129,0.28505226,84727.0,84726.0,0.00439649]
[1744942452535,0.28505226,84727.0,84726.0,0.00874996]
[1744942452851,0.23606619,84722.0,84721.0,0.34]
[1744942453186,0.23606619,84722.0,84721.0,0.01454085]
[1744942454150,0.23606619,84722.0,84721.0,0.01458867]
[1744942456879,0.23606619,84722.0,84721.0,0.02332105]
[1744942456880,0.23877393,84722.0,84721.0,0.02332105]
[1744942457583,0.23877393,84722.0,84721.0,0.0087802]
[1744942457755,0.28777393,84722.0,84721.0,4.782e-05]
[1744942457936,0.28506619,84722.0,84721.0,4.782e-05]
[1744942458125,0.28506619,84722.0,84721.0,0.00451719]
[1744942458992,0.28506619,84722.0,84721.0,4.782e-05]
[1744942460571,0.4045141,84722.0,84721.0,4.782e-05]
[1744942460769,0.4530141,84722.0,84721.0,4.782e-05]
[1744942479294,0.4540141,84722.0,84721.0,4.782e-05]
[1744942485029,0.23612472,84701.0,84700.0,0.02973985]
[1744942485235,0.23883246,84701.0,84700.0,0.01360727]
[1744942485435,0.23883246,84701.0,84700.0,0.00994378]
[1744942486659,0.23883246,84701.0,84700.0,0.001]
[1744942487463,0.23883246,84701.0,84700.0,0.02515318]
[1744942490374,0.23612472,84701.0,84700.0,0.03415797]
[1744942490708,0.23883246,84701.0,84700.0,0.03893141]
[1744942491232,0.23883246,84701.0,84700.0,0.03315797]
[1744942491429,0.23883246,84701.0,84700.0,0.001]
[1744942491843,0.23883246,84701.0,84700.0,0.02507991]
[1744942492040,0.23883246,84701.0,84700.0,0.001]
[1744942493255,0.23883246,84701.0,84700.0,0.00577344]
[1744942493776,0.23883246,84701.0,84700.0,0.02924592]
[1744942494071,0.23883246,84701.0,84700.0,0.02447248]
[1744942494453,0.23883246,84701.0,84700.0,0.02924592]
[1744942494649,0.23883246,84701.0,84700.0,0.03825866]
[1744942494981,0.23883246,84701.0,84700.0,0.00577344]
[1744942495674,0.23883246,84701.0,84700.0,0.02910647]
[1744942497273,0.23612472,84701.0,84700.0,0.02910647]
[1744942498263,0.24791951,84705.0,84701.0,0.01180623]
[1744942498589,0.23611804,84704.0,84702.0,0.01454085]
[1744942498793,0.23611914,84703.0,84702.0,0.01929612]
[1744942498981,0.23611804,84704.0,84702.0,0.01929612]
[1744942499828,0.24790483,84710.0,84706.0,0.04722215]
[1744942499976,0.01180512,84709.0,84704.0,0.01454085]
[1744942500189,0.24791046,84708.0,84707.0,0.00476193]
[1744942500393,0.23610805,84707.0,84705.0,0.047]
[1744942500695,0.23611078,84706.0,84705.0,0.047]
[1744942501417,0.23611357,84705.0,84704.0,0.34]
[1744942502090,0.23882131,84705.0,84700.0,0.03313789]
[1744942502434,0.2361275,84700.0,84699.0,0.01496235]
[1744942502796,0.2361275,84700.0,84699.0,0.01596235]
[1744942502995,0.2361275,84700.0,84699.0,0.02069774]
[1744942503896,0.2361275,84700.0,84699.0,0.04163277]
[1744942505241,0.2361275,84700.0,84699.0,0.05058212]
[1744942505586,0.23883524,84700.0,84699.0,0.05058212]
[1744942507614,0.23883524,84700.0,84699.0,0.03604127]
[1744942507938,0.00270774,84700.0,84699.0,0.03604127]
[1744942508152,0.00270774,84701.0,84699.0,0.03604127]
[1744942508708,0.01180567,84705.0,84701.0,0.35454085]
[1744942508914,0.23611635,84704.0,84702.0,0.01454085]
[1744942509128,0.23611691,84704.0,84702.0,0.01930176]
[1744942509328,0.23611914,84703.0,84702.0,0.01930176]
[1744942515129,0.2361275,84700.0,84697.0,0.25047275]
[1744942515339,0.23613032,84699.0,84697.0,0.26227954]
[1744942515673,0.24793387,84700.0,84697.0,0.26227954]
[1744942516023,0.23613107,84699.0,84697.0,0.28397758]
[1744942516598,0.24793387,84700.0,84697.0,0.28397758]
[1744942517018,0.24793387,84700.0,84698.0,0.01454085]
[1744942517253,0.23613029,84699.0,84698.0,0.01454085]
[1744942519749,0.23613029,84699.0,84698.0,0.0234918]
[1744942522451,0.23613029,84699.0,84698.0,0.00895095]
[1744942522665,0.23613308,84698.0,84697.0,0.27217079]
[1744942523073,0.23613308,84698.0,84697.0,0.02169804]
[1744942523280,0.23613308,84698.0,84696.0,0.04722767]
[1744942523429,0.23613308,84698.0,84696.0,0.38722767]
[1744942523625,0.24794199,84699.0,84696.0,0.34879447]
[1744942523833,0.24793303,84702.0,84698.0,0.01180665]
[1744942524088,0.24793303,84702.0,84699.0,0.04722579]
[1744942524269,0.24793134,84701.0,84698.0,0.01180665]
[1744942524649,0.24792316,84704.0,84699.0,0.01180651]
[1744942525088,0.24792457,84704.0,84701.0,0.04722489]
[1744942525289,0.23612479,84701.0,84699.0,0.01454085]
[1744942525489,0.23612472,84701.0,84699.0,0.01454085]
[1744942525794,0.24793095,84701.0,84698.0,0.01454085]
[1744942526012,0.23612794,84700.0,84698.0,0.35454085]
[1744942526431,0.23613029,84699.0,84698.0,0.35454085]
[1744942528418,0.23612769,84700.0,84698.0,0.35454085]
[1744942529559,0.001,84703.0,84700.0,0.01180637]
[1744942530165,0.001,84703.0,84702.0,0.04722438]
[1744942530576,0.001,84703.0,84701.0,0.38722494]
[1744942530879,0.23712053,84703.0,84701.0,0.34]
[1744942531277,0.23712053,84703.0,84700.0,0.04722504]
[1744942531438,0.23711969,84703.0,84699.0,0.39903254]
[1744942531640,0.23711969,84703.0,84700.0,0.04722517]
[1744942531960,0.23711969,84703.0,84699.0,0.38722603]
[1744942531961,0.24792851,84702.0,84699.0,0.38722603]
[1744942532363,0.01280595,84703.0,84700.0,0.04722501]
[1744942533240,0.24892617,84703.0,84700.0,0.04722501]
[1744942534510,0.001,84703.0,84700.0,0.04722501]
[1744942536419,0.001,84703.0,84701.0,0.01454085]
[1744942536839,0.2361275,84700.0,84699.0,0.01454085]
[1744942537320,0.24793174,84701.0,84699.0,0.01454085]
[1744942537477,0.2361275,84700.0,84699.0,0.01454085]
[1744942539608,0.24793136,84701.0,84699.0,0.01454085]
[1744942540707,0.2361275,84700.0,84699.0,0.01454085]
[1744942542603,0.24793104,84701.0,84699.0,0.01454085]
[1744942544284,0.2361275,84700.0,84699.0,0.01454085]
[1744942544800,0.24793387,84700.0,84698.0,0.01454085]
[1744942545101,0.24893387,84700.0,84698.0,0.01454085]
[1744942545830,0.23613029,84699.0,84698.0,0.01454085]
[1744942548854,0.24893387,84700.0,84698.0,0.01454085]
[1744942550171,0.23613029,84699.0,84698.0,0.01454085]
[1744942551407,0.23713029,84699.0,84698.0,0.01454085]
[1744942552010,0.001,84699.0,84698.0,0.01454085]
[1744942552309,0.23713029,84699.0,84698.0,0.01454085]
[1744942555041,0.23713029,84699.0,84695.0,0.02098567]
[1744942555042,0.23507914,84696.0,84695.0,0.02098567]
[1744942555269,0.23778688,84696.0,84695.0,0.02098567]
[1744942555505,0.2361526,84691.0,84690.0,0.34]
[1744942556446,0.2361526,84691.0,84681.0,0.38654085]
[1744942556447,0.2361777,84682.0,84681.0,0.38654085]
[1744942556635,0.2361777,84682.0,84681.0,0.38699172]
[1744942557959,0.2361777,84682.0,84681.0,0.39582014]
[1744942558414,0.2361777,84682.0,84681.0,0.417485]
[1744942561658,0.2371777,84682.0,84681.0,0.417485]
[1744942565395,0.2371777,84682.0,84681.0,0.077485]
[1744942579183,0.001,84682.0,84681.0,0.077485]
[1744942579754,0.001,84682.0,84681.0,0.12472109]
[1744942579928,0.001,84682.0,84681.0,0.46472109]
[1744942580131,0.2371777,84682.0,84681.0,0.417485]
[1744942580345,0.001,84682.0,84681.0,0.417485]
[1744942582407,0.001,84682.0,84681.0,0.46472109]
[1744942583373,0.001,84682.0,84681.0,0.59688109]
[1744942585356,0.00791097,84690.0,84687.0,0.01454085]
[1744942585608,0.24797124,84688.0,84686.0,0.01454085]
[1744942585875,0.23616375,84687.0,84686.0,0.01454085]
[1744942586126,0.23617212,84684.0,84683.0,0.01454085]
[1744942586373,0.23617601,84683.0,84682.0,0.01454085]
[1744942586596,0.23617491,84683.0,84682.0,0.01454085]
[1744942586827,0.24798143,84684.0,84682.0,0.01454085]
[1744942587582,0.01180832,84686.0,84682.0,0.07358494]
[1744942587713,0.24797686,84686.0,84683.0,0.38723498]
[1744942587905,0.24797686,84686.0,84684.0,0.04723439]
[1744942588119,0.24797495,84686.0,84684.0,0.04723439]
[1744942588787,0.24797495,84686.0,84683.0,0.05904372]
[1744942589995,0.23616994,84685.0,84683.0,0.05904372]
[1744942590204,0.24797495,84686.0,84683.0,0.05904372]
[1744942590976,0.23616957,84685.0,84683.0,0.05904372]
[1744942591513,0.23616957,84685.0,84683.0,0.01180874]
[1744942591992,0.23616957,84685.0,84684.0,0.47216]
[1744942594806,0.24797495,84686.0,84685.0,0.34]
[1744942595938,0.23616933,84685.0,84684.0,0.13216]
[1744942597516,0.23617572,84683.0,84682.0,0.48670085]
[1744942598113,0.24798151,84684.0,84683.0,0.35454085]
[1744942598899,0.24798151,84684.0,84683.0,0.34]
[1744942599122,0.24798151,84684.0,84683.0,0.35454085]
[1744942599415,0.24797058,84688.0,84683.0,0.41358453]
[1744942599760,0.24797058,84688.0,84683.0,0.24577219]
[1744942600167,0.24797058,84688.0,84685.0,0.04723362]
[1744942601338,0.23615371,84691.0,84689.0,0.04723163]
[1744942601549,0.23615621,84690.0,84687.0,0.04723258]
[1744942601735,0.24796636,84689.0,84687.0,0.04723258]
[1744942601949,0.247969,84688.0,84686.0,0.40177414]
[1744942602453,0.247969,84688.0,84686.0,0.19809336]
[1744942602962,0.24797193,84687.0,84684.0,0.04723433]
[1744942604112,0.24797193,84687.0,84685.0,0.04723356]
[1744942604664,0.01180818,84687.0,84685.0,0.04723356]
[1744942605623,0.24797331,84687.0,84685.0,0.04723356]
[1744942606954,0.01180818,84687.0,84685.0,0.04723356]
[1744942607159,0.2479696,84688.0,84685.0,0.04723356]
[1744942607359,0.24796653,84689.0,84686.0,0.04723275]
[1744942607908,0.01180818,84687.0,84685.0,0.04723371]
[1744942609521,0.24796653,84689.0,84686.0,0.04723283]
[1744942609923,0.24796653,84689.0,84687.0,0.0472325]
[1744942612137,0.01180776,84690.0,84688.0,0.04723219]
[1744942612343,0.01180776,84690.0,84687.0,0.0472325]
[1744942613982,0.24796452,84690.0,84688.0,0.04723216]
[1744942615268,0.01180721,84694.0,84686.0,0.01180832]
[1744942615485,0.01180776,84690.0,84688.0,0.04723192]
[1744942615667,0.24796367,84690.0,84688.0,0.04723192]
[1744942615864,0.24796265,84691.0,84688.0,0.04723192]
[1744942616294,0.24796265,84691.0,84689.0,0.04723135]
[1744942616965,0.01180763,84691.0,84689.0,0.04723135]
[1744942618066,0.24795774,84692.0,84689.0,0.04723135]
[1744942619550,0.24795774,84692.0,84690.0,0.04723101]
[1744942620317,0.24795423,84694.0,84691.0,0.04723052]
[1744942620486,0.4721516,84719.0,84690.0,0.34]
[1744942620487,0.24790134,84712.0,84708.0,0.04722095]
[1744942620696,0.01180512,84709.0,84704.0,0.04722327]
[1744942620900,0.01180512,84709.0,84704.0,0.00862876]
[1744942620901,0.01180553,84706.0,84704.0,0.00862876]
[1744942621102,0.01451327,84706.0,84703.0,0.38722338]
[1744942621312,0.2506251,84706.0,84703.0,0.38722338]
[1744942621508,0.24791736,84706.0,84703.0,0.38722338]
[1744942621909,0.00010621,84706.0,84705.0,0.04722271]
[1744942625289,0.00010621,84706.0,84705.0,0.38722271]
[1744942626314,0.01180428,84715.0,84712.0,0.04721878]
[1744942626519,0.01180386,84718.0,84715.0,0.04721713]
[1744942626718,0.01184928,84715.0,84712.0,0.04721881]
[1744942627831,4.5e-05,84715.0,84709.0,0.01180512]
[1744942628157,0.01184928,84715.0,84711.0,0.04721936]
[1744942628353,4.5e-05,84715.0,84713.0,0.04721825]
[1744942628651,4.5e-05,84715.0,84714.0,0.04721769]
[1744942628867,0.00355094,84723.0,84720.0,0.04721435]
[1744942629022,0.01264637,84723.0,84720.0,0.04721435]
[1744942629451,0.0008432,84723.0,84720.0,0.05458]
[1744942629608,0.01264637,84723.0,84720.0,0.05458]
[1744942629814,0.24871038,84723.0,84720.0,0.05458]
[1744942630397,0.23606619,84722.0,84721.0,0.00736565]
[1744942631332,0.01264637,84723.0,84721.0,0.00736565]